bitfinex/quotes_BTCUSD_20260311
["timestamp","ask_amount","ask_price","bid_price","bid_amount"]
[1773223774399,0.00138001,69536.0,69527.0,0.0719145]
[1773223774750,0.00022001,69536.0,69528.0,0.00465962]
[1773223774956,0.00138001,69536.0,69528.0,0.00465962]
[1773223776224,0.07328583,69536.0,69528.0,0.00465962]
[1773223776426,0.07328583,69536.0,69528.0,0.07191288]
[1773223777390,0.00496672,69533.0,69508.0,0.0002444]
[1773223777596,0.09031792,69534.0,69509.0,0.07200812]
[1773223777597,0.00496672,69519.0,69509.0,0.07200812]
[1773223777807,0.00116,69518.0,69509.0,0.07200812]
[1773223778050,0.00116,69517.0,69509.0,0.07200812]
[1773223778406,0.07192588,69516.0,69509.0,0.07200812]
[1773223781232,0.00116,69517.0,69511.0,0.00465962]
[1773223781432,0.00116,69521.0,69511.0,0.00465962]
[1773223783158,0.00116,69522.0,69512.0,0.07658964]
[1773223783730,0.07191848,69524.0,69512.0,0.07658964]
[1773223783951,0.00116,69523.0,69513.0,0.14859211]
[1773223784939,7.5e-05,69526.0,69514.0,0.00465962]
[1773223785154,7.5e-05,69526.0,69516.0,0.00465962]
[1773223785415,7.5e-05,69526.0,69515.0,0.07192692]
[1773223785540,0.001235,69526.0,69516.0,0.00465962]
[1773223786245,7.5e-05,69526.0,69518.0,0.00465962]
[1773223786687,7.5e-05,69526.0,69517.0,0.14393249]
[1773223787474,7.5e-05,69526.0,69519.0,0.07192278]
[1773223791913,7.5e-05,69526.0,69518.0,0.07192361]
[1773223791914,7.5e-05,69526.0,69521.0,0.07192071]
[1773223794048,0.07190864,69533.0,69521.0,0.07192071]
[1773223794049,0.00116,69533.0,69522.0,0.14880099]
[1773223794250,0.00116,69533.0,69523.0,0.0048685]
[1773223795225,0.00116,69533.0,69522.0,0.14393249]
[1773223795848,0.00116,69533.0,69523.0,0.07191864]
[1773223797094,0.07306877,69533.0,69523.0,0.07191864]
[1773223798053,0.00011188,69534.0,69523.0,0.07191864]
[1773223798257,0.00116,69533.0,69524.0,0.0048685]
[1773223798698,0.07189981,69542.0,69525.0,0.14393249]
[1773223798899,0.00458836,69538.0,69525.0,0.14404437]
[1773223800004,0.00022001,69533.0,69525.0,0.14404437]
[1773223800328,0.00022001,69533.0,69526.0,0.07191554]
[1773223801106,0.07219333,69543.0,69527.0,0.00479337]
[1773223801460,0.00116,69542.0,69531.0,0.00479337]
[1773223801800,0.07219328,69543.0,69531.0,0.00479337]
[1773223802006,0.00116,69542.0,69531.0,0.14872586]
[1773223802224,0.00116,69541.0,69532.0,0.07190933]
[1773223802595,0.07219328,69543.0,69532.0,0.07190933]
[1773223802790,0.00116,69540.0,69532.0,0.07190933]
[1773223803553,0.00458836,69539.0,69510.0,0.03993994]
[1773223803740,0.00458836,69529.0,69514.0,0.07192732]
[1773223803961,0.00458836,69527.0,69519.0,0.07212252]
[1773223804190,0.07191554,69526.0,69519.0,0.0002]
[1773223804331,0.07191554,69526.0,69512.0,0.0002]
[1773223804530,0.00458836,69525.0,69512.0,0.0002]
[1773223804941,0.00458836,69525.0,69512.0,0.07212972]
[1773223805349,0.00410836,69525.0,69512.0,0.07212972]
[1773223806438,0.07307761,69524.0,69513.0,0.00479337]
[1773223807251,0.07162294,69524.0,69513.0,0.00479337]
[1773223807394,0.07307761,69524.0,69513.0,0.00479337]
[1773223807603,0.00116,69523.0,69513.0,0.00479337]
[1773223807804,0.00116,69523.0,69517.0,0.00499337]
[1773223808012,0.07191761,69524.0,69517.0,0.00499337]
[1773223808209,0.00116,69522.0,69517.0,0.07691822]
[1773223808635,0.00116,69525.0,69517.0,0.07691822]
[1773223809041,0.07191648,69526.0,69517.0,0.0002]
[1773223809299,0.00116,69525.0,69517.0,0.0002]
[1773223810328,0.07191761,69524.0,69517.0,0.0002]
[1773223811051,0.00458836,69523.0,69509.0,0.000275]
[1773223811448,0.00458836,69523.0,69503.0,0.0002]
[1773223812574,0.00458836,69521.0,69500.0,0.000305]
[1773223812794,0.00458836,69521.0,69496.0,0.07194607]
[1773223812994,0.00458836,69521.0,69496.0,0.07194658]
[1773223813717,0.00458836,69521.0,69497.0,0.00479337]
[1773223813922,0.00458836,69519.0,69497.0,0.00479337]
[1773223814097,0.11431737,69518.0,69488.0,0.07215386]
[1773223814305,0.00458836,69518.0,69489.0,0.07195383]
[1773223814478,0.00458836,69518.0,69488.0,0.0002]
[1773223814479,0.00458836,69516.0,69488.0,0.0002]
[1773223815298,0.00458836,69516.0,69491.0,0.00044836]
[1773223815496,0.1430102,69516.0,69491.0,0.00044836]
[1773223815714,0.00458836,69515.0,69491.0,0.00044836]
[1773223815946,0.00458836,69513.0,69491.0,0.00044836]
[1773223816497,0.07193002,69512.0,69491.0,0.07239921]
[1773223816763,0.00458836,69511.0,69491.0,0.07239921]
[1773223817124,0.00458836,69511.0,69491.0,0.07259921]
[1773223817491,0.00116,69510.0,69491.0,0.07259921]
[1773223817743,0.001235,69509.0,69491.0,0.07259921]
[1773223818039,0.00458836,69507.0,69491.0,0.07259921]
[1773223818763,0.00458836,69505.0,69491.0,0.00064836]
[1773223819117,0.00458836,69505.0,69491.0,0.07260006]
[1773223820172,0.00558836,69505.0,69491.0,0.07260006]
[1773223820323,0.00458836,69505.0,69491.0,0.07260006]
[1773223820765,0.00451623,69503.0,69491.0,0.07260006]
[1773223820968,0.00116,69502.0,69491.0,0.07260006]
[1773223822745,0.07194141,69501.0,69491.0,0.07260006]
[1773223824675,0.07194141,69502.0,69492.0,0.00490723]
[1773223824873,0.00116,69502.0,69494.0,0.00490723]
[1773223825044,7.5e-05,69509.0,69494.0,0.00490723]
[1773223825246,0.00116,69508.0,69494.0,0.00490723]
[1773223825485,7.5e-05,69509.0,69494.0,0.00490723]
[1773223825696,0.00116,69508.0,69494.0,0.00490723]
[1773223825846,0.001235,69509.0,69494.0,0.00490723]
[1773223827064,0.001235,69509.0,69496.0,0.00490723]
[1773223827065,0.07316824,69509.0,69496.0,0.00490723]
[1773223827468,0.001235,69509.0,69496.0,0.00490723]
[1773223828088,7.5e-05,69509.0,69496.0,0.00490723]
[1773223828299,0.00116,69508.0,69496.0,0.00490723]
[1773223828819,0.00116,69513.0,69496.0,0.00590723]
[1773223829185,0.07193002,69512.0,69498.0,0.00490723]
[1773223829472,0.07309002,69512.0,69498.0,0.00490723]
[1773223830153,0.22109002,69512.0,69498.0,0.00490723]
[1773223830311,0.00022001,69509.0,69498.0,0.00490723]
[1773223831731,0.00022001,69509.0,69501.0,0.00490723]
[1773223832135,0.07193277,69510.0,69501.0,0.00490723]
[1773223832679,0.07223993,69516.0,69501.0,0.00490723]
[1773223832877,0.00031321,69516.0,69501.0,0.00490723]
[1773223833173,0.07223911,69516.0,69501.0,0.00490723]
[1773223833942,0.07223911,69516.0,69503.0,0.00490723]
[1773223834173,0.00451623,69515.0,69500.0,0.07201537]
[1773223834895,0.00451623,69515.0,69501.0,0.001]
[1773223835094,0.00116,69514.0,69501.0,0.001]
[1773223835957,0.07192899,69513.0,69500.0,7.5e-05]
[1773223836525,0.07192899,69513.0,69500.0,0.00498223]
[1773223838563,0.07192899,69513.0,69501.0,0.07194141]
[1773223840264,0.07192899,69513.0,69500.0,0.07692364]
[1773223840265,0.00451623,69512.0,69500.0,0.07201641]
[1773223840620,0.00451623,69510.0,69500.0,7.5e-05]
[1773223843679,0.07193313,69509.0,69500.0,7.5e-05]
[1773223843908,0.07193313,69509.0,69490.0,0.0397645]
[1773223843909,0.00116,69508.0,69471.0,0.0002]
[1773223844103,0.00451623,69489.0,69474.0,0.07204362]
[1773223844305,0.00451623,69487.0,69474.0,0.07204399]
[1773223844485,0.00451623,69487.0,69474.0,7.5e-05]
[1773223845090,0.00451623,69487.0,69472.0,0.00043]
[1773223845512,0.00451623,69487.0,69472.0,0.00054191]
[1773223845717,0.00451623,69487.0,69472.0,0.07251321]
[1773223845718,0.00451623,69485.0,69472.0,0.07251321]
[1773223845914,0.07311694,69486.0,69472.0,0.07251321]
[1773223845915,0.07195694,69486.0,69473.0,0.00490723]
[1773223846199,0.00116,69485.0,69473.0,0.00490723]
[1773223847196,0.07195396,69489.0,69473.0,0.00490723]
[1773223847437,0.07195084,69492.0,69473.0,0.00490723]
[1773223847594,0.00116,69488.0,69473.0,0.00490723]
[1773223847789,0.00116,69488.0,69475.0,0.00490723]
[1773223848847,7.5e-05,69483.0,69475.0,0.00490723]
[1773223849458,0.07195253,69491.0,69475.0,0.00490723]
[1773223849459,0.04597869,69491.0,69475.0,0.00490723]
[1773223850622,7.5e-05,69491.0,69477.0,0.00463763]
[1773223850822,7.5e-05,69491.0,69478.0,0.00463763]
[1773223851509,0.00116,69495.0,69478.0,0.00463763]
[1773223851712,0.07224766,69500.0,69478.0,0.00463763]
[1773223851913,0.00116,69499.0,69478.0,0.00463763]
[1773223852557,0.07194451,69498.0,69479.0,0.07196419]
[1773223852787,0.00116,69497.0,69480.0,0.00463763]
[1773223853200,0.07194451,69498.0,69480.0,0.00463763]
[1773223853506,0.00116,69496.0,69480.0,0.00463763]
[1773223853643,0.07194451,69498.0,69480.0,0.00463763]
[1773223853844,0.00116,69495.0,69480.0,0.00463763]
[1773223854046,0.00116,69498.0,69482.0,0.00463763]
[1773223854351,0.000305,69500.0,69484.0,0.00463763]
[1773223854572,0.00116,69499.0,69484.0,0.00463763]
[1773223854773,0.000305,69500.0,69486.0,0.00463763]
[1773223856241,0.000305,69500.0,69486.0,0.00563763]
[1773223856765,0.000305,69500.0,69488.0,0.00463763]
[1773223857007,0.000305,69500.0,69490.0,0.00463763]
[1773223858449,0.00116,69504.0,69490.0,0.00463763]
[1773223858780,0.00116,69505.0,69491.0,0.07195176]
[1773223858959,0.0719308,69512.0,69492.0,0.00455202]
[1773223859161,0.00116,69505.0,69492.0,0.00455202]
[1773223859570,0.00469947,69509.0,69492.0,0.00455202]
[1773223859754,0.00116,69505.0,69492.0,0.00455202]
[1773223861081,0.0719383,69504.0,69493.0,0.07194969]
[1773223861395,0.0730983,69505.0,69493.0,0.07194969]
[1773223861396,0.07309727,69505.0,69493.0,0.07194969]
[1773223861950,0.07309727,69505.0,69493.0,0.07650171]
[1773223862287,0.07309727,69505.0,69493.0,0.07661362]
[1773223864408,0.07331728,69505.0,69493.0,0.07661362]
[1773223866752,0.07331728,69505.0,69494.0,0.00455202]
[1773223867610,0.00116,69504.0,69494.0,0.00455202]
[1773223867826,7.5e-05,69509.0,69495.0,0.00455202]
[1773223868003,7.5e-05,69509.0,69500.0,0.00455202]
[1773223868642,7.5e-05,69509.0,69501.0,0.07194141]
[1773223868842,7.5e-05,69509.0,69500.0,0.07194225]
[1773223869022,0.00462447,69508.0,69500.0,0.07194225]
[1773223869605,0.00462447,69508.0,69494.0,0.07194865]
[1773223870761,0.00462447,69506.0,69493.0,0.07206056]
[1773223871041,0.00462447,69503.0,69485.0,0.07195779]
[1773223871264,0.00462447,69499.0,69483.0,0.07203432]
[1773223871486,0.00462447,69497.0,69483.0,7.5e-05]
[1773223871883,0.00462447,69497.0,69478.0,0.07196513]
[1773223872035,0.00462447,69497.0,69479.0,0.07216391]
[1773223872442,0.00462447,69497.0,69479.0,0.0002]
[1773223872846,0.00462447,69495.0,69479.0,0.0002]
[1773223873063,0.00116,69494.0,69480.0,0.00455202]
[1773223873681,0.00578447,69494.0,69480.0,0.00455202]
[1773223873881,0.00116,69494.0,69480.0,0.00455202]
[1773223874086,0.00462447,69493.0,69480.0,0.00455202]
[1773223875186,0.07195072,69492.0,69481.0,0.07196211]
[1773223876006,7.5e-05,69491.0,69481.0,0.07196211]
[1773223876838,0.07194348,69499.0,69482.0,0.10985939]
[1773223877052,0.00116,69493.0,69483.0,0.00455202]
[1773223877256,0.00116,69499.0,69485.0,0.00455202]
[1773223877780,0.00578447,69499.0,69485.0,0.00455202]
[1773223878095,0.00116,69499.0,69484.0,0.07195901]
[1773223878280,0.00462447,69498.0,69484.0,0.07195901]
[1773223878480,0.00462447,69498.0,69484.0,0.07651103]
[1773223879367,0.07194555,69497.0,69484.0,0.07195901]
[1773223879564,0.07194555,69497.0,69485.0,0.00455202]
[1773223881544,0.07194555,69497.0,69486.0,0.07195694]
[1773223882285,0.07194555,69497.0,69485.0,0.07676233]
[1773223882444,0.00499423,69496.0,69481.0,0.07216199]
[1773223882646,0.00499423,69496.0,69481.0,0.0002]
[1773223882862,0.00499423,69496.0,69483.0,7.5e-05]
[1773223883287,0.00499423,69496.0,69479.0,0.0002]
[1773223883492,0.00499423,69494.0,69479.0,0.0002]
[1773223883801,0.00499423,69492.0,69479.0,0.0002]
[1773223884365,0.00499423,69492.0,69475.0,0.00043]
[1773223885554,0.07195176,69491.0,69475.0,0.00043]
[1773223885782,0.00499423,69490.0,69475.0,0.00043]
[1773223885980,0.00499423,69490.0,69475.0,0.07239775]
[1773223886393,0.00499423,69490.0,69481.0,0.0002]
[1773223887329,0.00599423,69490.0,69481.0,0.0002]
[1773223888568,0.00499423,69488.0,69481.0,0.0002]
[1773223888766,0.00116,69487.0,69481.0,0.0002]
[1773223889023,0.00499423,69486.0,69474.0,0.000275]
[1773223890304,0.00116,69485.0,69474.0,0.000275]
[1773223890485,0.00499423,69486.0,69474.0,0.000275]
[1773223890486,0.001,69486.0,69474.0,0.07224333]
[1773223890782,0.00116,69485.0,69476.0,0.00480539]
[1773223891179,0.07295752,69486.0,69476.0,0.00480539]
[1773223891420,0.00116,69485.0,69476.0,0.00480539]
[1773223891772,0.00116,69484.0,69476.0,0.00480539]
[1773223892225,0.07195752,69486.0,69475.0,0.07196833]
[1773223892398,0.00116,69485.0,69476.0,0.001]
[1773223892603,0.07311873,69485.0,69475.0,0.07196833]
[1773223893006,0.00116,69484.0,69476.0,0.001]
[1773223893206,0.00116,69484.0,69475.0,0.07196833]
[1773223893404,0.07195873,69485.0,69476.0,0.001]
[1773223893593,0.00116,69484.0,69476.0,0.001]
[1773223894558,0.04215709,69484.0,69475.0,0.07196833]
[1773223894768,0.11295713,69483.0,69475.0,0.07196833]
[1773223894940,0.11295713,69483.0,69475.0,0.07296833]
[1773223895137,0.04099709,69483.0,69475.0,0.07196833]
[1773223895337,0.00116,69483.0,69475.0,0.07196833]
[1773223895541,0.00116,69483.0,69476.0,0.001]
[1773223895862,0.00116,69483.0,69475.0,0.07196833]
[1773223896007,0.00116,69483.0,69475.0,0.07296833]
[1773223896209,0.00116,69483.0,69475.0,0.07196833]
[1773223896458,0.07195873,69485.0,69475.0,0.07196833]
[1773223896635,0.00116,69483.0,69476.0,0.001]
[1773223897040,0.00116,69483.0,69477.0,0.07196626]
[1773223897898,0.0409976,69483.0,69475.0,0.07196812]
[1773223898074,0.0409976,69483.0,69475.0,0.07296812]
[1773223898274,0.0421576,69483.0,69474.0,0.07224365]
[1773223899084,0.07196108,69482.0,69474.0,0.07224365]
[1773223899261,0.11295871,69482.0,69474.0,0.07224365]
[1773223899473,0.07196108,69482.0,69474.0,0.07224365]
[1773223899651,0.04099763,69481.0,69474.0,0.07224365]
[1773223899860,0.04099763,69481.0,69474.0,0.07324365]
[1773223900251,0.04099763,69481.0,69475.0,0.0002]
[1773223901286,0.0409997,69479.0,69475.0,0.0002]
[1773223901660,0.0409997,69479.0,69471.0,0.0002]
[1773223901661,0.08597984,69478.0,69457.0,7.5e-05]
[1773223901860,0.0409997,69477.0,69461.0,0.0002751]
[1773223902094,0.00116,69476.0,69461.0,0.0002751]
[1773223902309,0.04100644,69475.0,69461.0,0.0002751]
[1773223902912,0.04100644,69473.0,69461.0,0.0002751]
[1773223903344,0.04100644,69471.0,69461.0,0.0002751]
[1773223903537,0.04100644,69469.0,69461.0,0.0002751]
[1773223904766,0.07197144,69472.0,69461.0,0.0722576]
[1773223904964,0.00116,69471.0,69461.0,0.0722576]
[1773223905528,7.5e-05,69474.0,69461.0,0.0722576]
[1773223905750,0.00116,69473.0,69461.0,0.0722576]
[1773223906118,0.00116,69472.0,69461.0,0.0732576]
[1773223907269,0.07197247,69471.0,69461.0,0.0722576]
[1773223907567,0.11297685,69471.0,69461.0,0.0722576]
[1773223908269,0.11297685,69471.0,69461.0,0.0732576]
[1773223908425,0.11297685,69471.0,69461.0,0.0722576]
[1773223908869,0.11297685,69471.0,69461.0,0.0732576]
[1773223911596,0.11297685,69471.0,69461.0,0.0722576]
[1773223911911,0.07313247,69472.0,69461.0,0.0732576]
[1773223912267,0.00116,69473.0,69461.0,0.0732576]
[1773223912567,0.00116,69472.0,69461.0,0.0732576]
[1773223913023,0.07204448,69474.0,69461.0,0.0732576]
[1773223913202,0.00116,69472.0,69461.0,0.0732576]
[1773223913375,0.00116,69472.0,69461.0,0.0722576]
[1773223913585,0.04100439,69471.0,69461.0,0.0722576]
[1773223914723,0.07197351,69470.0,69461.0,0.0722576]
[1773223915178,0.11297716,69471.0,69461.0,0.0722576]
[1773223915616,0.04100439,69471.0,69461.0,0.0722576]
[1773223916720,0.00116,69471.0,69461.0,0.0722576]
[1773223917102,0.0720447,69474.0,69461.0,0.0722576]
[1773223918343,0.0720447,69474.0,69461.0,0.0732576]
[1773223918522,0.00116,69473.0,69461.0,0.0742576]
[1773223918728,0.00116,69473.0,69461.0,0.0732576]
[1773223918885,0.00116,69472.0,69461.0,0.0732576]
[1773223919088,0.07197247,69471.0,69461.0,0.0732576]
[1773223919758,0.11297686,69471.0,69461.0,0.0732576]
[1773223919997,0.04100439,69471.0,69461.0,0.0732576]
[1773223920200,0.04100439,69471.0,69461.0,0.0722576]
[1773223920422,0.04100439,69481.0,69461.0,0.0732576]
[1773223920648,0.00116,69478.0,69461.0,0.0722576]
[1773223921144,0.00116,69479.0,69468.0,0.03980386]
[1773223921352,0.07203509,69483.0,69469.0,0.07197454]
[1773223921781,0.00116,69482.0,69469.0,0.07197454]
[1773223922306,0.00022001,69478.0,69469.0,0.07197454]
[1773223922994,0.04100085,69477.0,69462.0,0.073141]
[1773223923184,0.04100085,69475.0,69461.0,0.07425738]
[1773223923504,0.04100085,69475.0,69461.0,0.07225738]
[1773223923711,0.04100085,69475.0,69469.0,0.001]
[1773223923897,0.04100085,69475.0,69461.0,0.07225738]
[1773223924541,0.04100085,69475.0,69461.0,0.0722575]
[1773223924745,0.04100333,69470.0,69461.0,0.0002751]
[1773223925046,0.07312729,69476.0,69461.0,0.0002751]
[1773223925047,0.04100333,69468.0,69461.0,0.0002751]
[1773223925195,0.04100333,69466.0,69461.0,0.0002751]
[1773223926022,0.07313662,69467.0,69461.0,0.0002751]
[1773223926915,0.04100716,69466.0,69451.0,0.0001456]
[1773223927124,0.04100716,69466.0,69451.0,0.00024766]
[1773223927336,0.04100716,69464.0,69451.0,0.00024766]
[1773223929105,0.04100716,69464.0,69451.0,0.00044766]
[1773223929309,0.07198076,69463.0,69451.0,0.00044766]
[1773223929633,0.04101162,69462.0,69451.0,0.00044766]
[1773223929934,0.04101162,69460.0,69451.0,0.00044766]
[1773223931218,0.04201162,69460.0,69451.0,0.00044766]
[1773223931630,0.07197836,69466.0,69451.0,0.07244083]
[1773223931866,0.04101162,69469.0,69451.0,0.07244083]
[1773223931867,0.07197609,69468.0,69451.0,0.07244083]
[1773223932048,0.14318396,69471.0,69451.0,0.07244083]
[1773223932049,0.00116,69467.0,69452.0,0.10626959]
[1773223932250,0.07197351,69470.0,69452.0,0.10626959]
[1773223932251,0.07197351,69470.0,69453.0,0.00116]
[1773223932854,0.07219258,69471.0,69453.0,0.00116]
[1773223933053,0.00116,69471.0,69453.0,0.00116]
[1773223933255,0.07197144,69472.0,69453.0,0.00116]
[1773223933486,0.00116,69471.0,69453.0,0.00116]
[1773223933689,0.07313275,69471.0,69454.0,0.07199009]
[1773223934198,0.00116,69471.0,69454.0,0.07199009]
[1773223935545,7.5e-05,69465.0,69454.0,0.07199009]
[1773223935673,7.5e-05,69465.0,69454.0,0.07299009]
[1773223936325,7.5e-05,69465.0,69454.0,0.07199009]
[1773223936526,7.5e-05,69465.0,69454.0,0.07299009]
[1773223936679,0.00022001,69485.0,69454.0,0.07299009]
[1773223937027,0.00116,69477.0,69454.0,0.07319009]
[1773223937253,0.07218612,69478.0,69454.0,0.07419009]
[1773223937435,0.07334612,69478.0,69454.0,0.07419009]
[1773223937598,0.07334612,69478.0,69454.0,0.07319009]
[1773223937935,0.00116,69477.0,69454.0,0.07319009]
[1773223938394,0.00116,69477.0,69454.0,0.07219009]
[1773223938729,0.00116,69477.0,69454.0,0.07319009]
[1773223939390,0.00022001,69479.0,69454.0,0.07219009]
[1773223939579,0.00022001,69479.0,69454.0,0.07419009]
[1773223939580,0.07218464,69479.0,69454.0,0.07419009]
[1773223939757,0.07218464,69479.0,69454.0,0.07319009]
[1773223939960,0.00022001,69479.0,69460.0,0.11944667]
[1773223940169,0.00022001,69479.0,69461.0,0.00116]
[1773223940346,0.0001456,69480.0,69461.0,0.00116]
[1773223940542,0.07196315,69480.0,69461.0,0.00116]
[1773223941419,0.00116,69481.0,69461.0,0.00116]
[1773223941835,0.00116,69481.0,69462.0,0.0719818]
[1773223942490,0.00116,69482.0,69462.0,0.0719818]
[1773223943312,0.03787061,69482.0,69462.0,0.0719818]
[1773223944164,0.03671072,69480.0,69465.0,7.5e-05]
[1773223946116,0.07196419,69479.0,69465.0,7.5e-05]
[1773223946467,0.03670998,69478.0,69465.0,7.5e-05]
[1773223946892,0.03670998,69478.0,69465.0,0.001075]
[1773223947103,0.03670998,69478.0,69465.0,7.5e-05]
[1773223947741,0.03670998,69478.0,69466.0,0.00116]
[1773223948107,0.03670998,69478.0,69467.0,0.07197662]
[1773223950021,0.07196419,69479.0,69467.0,0.07197662]
[1773223950256,0.03670587,69477.0,69467.0,0.07197662]
[1773223951760,0.07196419,69479.0,69467.0,0.07197662]
[1773223951967,0.07312419,69479.0,69467.0,0.07197662]
[1773223952637,0.00116,69479.0,69467.0,0.07197662]
[1773223952834,0.07218206,69482.0,69467.0,0.07197662]
[1773223952835,0.07218206,69482.0,69469.0,0.03979782]
[1773223953043,0.00116,69479.0,69469.0,0.03979782]
[1773223954324,0.00022001,69482.0,69469.0,0.03979782]
[1773223954565,0.00022001,69482.0,69470.0,0.07197351]
[1773223955127,0.07218119,69482.0,69470.0,0.07197351]
[1773223956158,0.07218119,69482.0,69470.0,0.07297351]
[1773223956516,0.07218119,69482.0,69470.0,0.07197351]
[1773223957014,0.10887853,69482.0,69470.0,0.07197351]
[1773223957400,0.10887912,69482.0,69470.0,0.07197351]
[1773223957638,0.03691735,69482.0,69470.0,0.07197351]
[1773223958290,0.07217696,69486.0,69472.0,0.03979782]
[1773223958291,0.00138001,69486.0,69472.0,0.03979782]
[1773223958543,0.00138001,69486.0,69475.0,0.03979782]
[1773223958691,0.00138001,69486.0,69473.0,0.00116]
[1773223958892,0.07217854,69485.0,69474.0,0.07196936]
[1773223959101,0.00022001,69485.0,69474.0,0.07196936]
[1773223959739,0.03691502,69485.0,69474.0,0.07196936]
[1773223960392,0.10974249,69485.0,69474.0,0.07196936]
[1773223960593,0.03778385,69485.0,69474.0,0.07196936]
[1773223961219,0.03778385,69485.0,69474.0,0.07204436]
[1773223962519,0.00022001,69482.0,69474.0,0.07204436]
[1773223964379,0.07218112,69482.0,69474.0,7.5e-05]
[1773223964561,0.03812866,69481.0,69474.0,7.5e-05]
[1773223966940,0.03811815,69481.0,69474.0,7.5e-05]
[1773223969013,0.07196315,69480.0,69474.0,7.5e-05]
[1773223969174,0.03811521,69479.0,69471.0,0.07197247]
[1773223969576,0.03811521,69479.0,69463.0,0.00116]
[1773223969798,0.03811521,69479.0,69462.0,0.0003542]
[1773223969939,0.03811521,69477.0,69464.0,0.07197877]
[1773223970350,0.03811521,69477.0,69462.0,0.0015142]
[1773223970351,0.03811521,69477.0,69462.0,0.0003542]
[1773223970570,0.03811521,69477.0,69458.0,0.07198494]
[1773223970900,0.03811521,69477.0,69458.0,0.00010206]
[1773223971312,0.03911521,69477.0,69458.0,0.00010206]
[1773223971875,0.07196729,69476.0,69458.0,0.00030206]
[1773223972208,0.03997525,69475.0,69458.0,0.0722879]
[1773223972398,0.03998383,69473.0,69458.0,0.0722879]
[1773223973121,0.03998383,69473.0,69458.0,0.00030206]
[1773223973804,0.03998383,69473.0,69458.0,0.07228728]
[1773223973949,0.07197144,69472.0,69458.0,0.07228728]
[1773223974156,0.04114383,69471.0,69458.0,0.07228728]
[1773223976276,0.03999947,69469.0,69458.0,0.07228728]
[1773223978165,0.07197662,69467.0,69458.0,0.07228728]
[1773223979007,0.11398033,69468.0,69458.0,0.07228728]
[1773223980076,0.1139804,69468.0,69458.0,0.07228728]
[1773223980261,0.1128204,69468.0,69458.0,0.07228728]
[1773223980463,0.1139804,69468.0,69458.0,0.07228728]
[1773223981116,0.04084408,69467.0,69458.0,0.07228728]
[1773223982712,0.07197757,69467.0,69458.0,0.07228728]
[1773223983094,0.04088433,69466.0,69458.0,0.07228728]
[1773223986751,0.112862,69466.0,69458.0,0.07228728]
[1773223987161,0.0418087,69465.0,69458.0,0.00030206]
[1773223987359,0.0418087,69465.0,69455.0,0.07218875]
[1773223987578,0.07197973,69464.0,69455.0,0.0002]
[1773223987729,0.0418087,69463.0,69455.0,0.0002]
[1773223988752,0.00116,69463.0,69455.0,0.0002]
[1773223989612,0.04296131,69463.0,69455.0,0.0002]
[1773223990655,0.11379251,69469.0,69455.0,0.0002]
[1773223990897,0.07313657,69468.0,69455.0,0.0002]
[1773223991416,0.11495453,69468.0,69455.0,0.0002]
[1773223991632,0.07218998,69483.0,69455.0,0.0002]
[1773223991633,0.0004592,69500.0,69458.0,0.3980625]
[1773223991914,0.04181796,69492.0,69477.0,0.11479105]
[1773223992155,0.04181796,69492.0,69478.0,0.1435441]
[1773223992368,0.04181796,69492.0,69477.0,0.11595105]
[1773223992369,0.04181796,69492.0,69479.0,0.1435441]
[1773223992490,0.04181796,69492.0,69481.0,0.07196211]
[1773223992698,0.04181796,69492.0,69482.0,0.1435441]
[1773223992699,0.07195116,69492.0,69482.0,0.1435441]
[1773223992898,0.04493537,69491.0,69483.0,0.1435441]
[1773223993107,0.00022001,69486.0,69484.0,0.1435441]
[1773223993318,0.04515538,69486.0,69485.0,0.06098935]
[1773223993542,0.04515538,69486.0,69485.0,0.05887932]
[1773223993747,0.04515538,69486.0,69485.0,0.05896352]
[1773223994152,0.00022001,69486.0,69485.0,0.05896352]
[1773223996783,0.11675316,69493.0,69485.0,0.05896352]
[1773223996784,1e-08,69493.0,69485.0,0.05896352]
[1773223997132,0.10649613,69498.0,69485.0,0.07204217]
[1773223997301,0.073325,69498.0,69485.0,0.07215423]
[1773223997725,0.10649613,69498.0,69485.0,0.07215423]
[1773223998015,0.10649613,69498.0,69485.0,0.07315423]
[1773223998366,0.10649613,69498.0,69485.0,0.07215423]
[1773223998564,0.03329254,69497.0,69485.0,0.07315423]
[1773223998966,0.10523849,69497.0,69485.0,0.07415423]
[1773223999399,0.10523849,69497.0,69485.0,0.07315423]
[1773224000242,0.07194595,69497.0,69485.0,0.07315423]
[1773224000394,0.03446162,69496.0,69485.0,0.07215423]
[1773224000792,0.03330162,69496.0,69485.0,0.07215423]
[1773224001016,0.00022001,69498.0,69485.0,0.07215423]
[1773224001234,0.00022001,69498.0,69486.0,0.03980625]
[1773224001931,0.00022001,69498.0,69486.0,0.03989045]
[1773224002638,0.07216469,69498.0,69486.0,0.03989045]
[1773224002996,0.07216469,69498.0,69487.0,0.0719559]
[1773224003196,0.07216484,69498.0,69487.0,0.0719559]
[1773224003440,0.00022001,69498.0,69487.0,0.0719559]
[1773224003647,0.07216484,69498.0,69487.0,0.0719559]
[1773224003846,0.07216484,69498.0,69487.0,0.0720401]
[1773224004213,0.00022001,69498.0,69487.0,0.0720401]
[1773224004414,0.07216454,69498.0,69487.0,0.0720401]
[1773224005459,0.03273066,69497.0,69487.0,8.42e-05]
[1773224005675,0.03273066,69497.0,69486.0,0.07195652]
[1773224005830,0.03273066,69497.0,69487.0,0.14309579]
[1773224006028,0.03273066,69497.0,69483.0,0.07335837]
[1773224006231,0.03273066,69497.0,69484.0,0.05601074]
[1773224006232,0.03282743,69497.0,69484.0,0.05601074]
[1773224006545,0.03282743,69497.0,69483.0,0.07335837]
[1773224007571,0.0322131,69495.0,69483.0,0.07219837]
[1773224007962,1e-08,69507.0,69486.0,0.10008364]
[1773224008158,0.00037347,69507.0,69490.0,0.03980625]
[1773224008473,0.00153347,69507.0,69490.0,0.03980625]
[1773224010290,0.00153347,69507.0,69491.0,0.07195176]
[1773224010487,0.00153347,69507.0,69491.0,0.07202676]
[1773224011828,0.0734687,69507.0,69491.0,0.07202676]
[1773224012125,0.00665542,69506.0,69491.0,0.07302676]
[1773224012758,0.00665542,69506.0,69491.0,0.07295176]
[1773224013032,0.00665542,69506.0,69491.0,0.07195176]
[1773224013386,0.00665542,69506.0,69491.0,0.07295176]
[1773224013585,0.00665542,69506.0,69491.0,0.07195176]
[1773224013931,0.0079674,69505.0,69491.0,0.07195176]
[1773224014134,0.0079674,69505.0,69491.0,0.07295176]
[1773224014439,0.0079674,69505.0,69491.0,0.07195176]
[1773224014635,0.0079674,69505.0,69491.0,0.07411176]
[1773224015061,0.00723239,69503.0,69491.0,0.07295176]
[1773224015366,0.00723239,69503.0,69491.0,0.07195176]
[1773224017168,0.00723239,69503.0,69491.0,0.07311176]
[1773224017375,0.00723239,69503.0,69491.0,0.07411176]
[1773224017735,0.00723239,69503.0,69491.0,0.07195176]
[1773224017957,0.00723239,69503.0,69493.0,0.11479105]
[1773224018125,0.00723239,69503.0,69494.0,0.11479105]